bitfinex-derivatives/quotes_ETHF0:USTF0_20220108
["timestamp","ask_amount","ask_price","bid_price","bid_amount"]
[1641664741452,0.640787,3046.5,3045.1,1.64075639]
[1641664741651,0.640787,3046.5,3044.4,0.08207]
[1641664741852,0.08208,3046.4,3043.8,35.4995]
[1641664742051,0.08208,3046.4,3043.9,0.08208]
[1641664742453,2.00479,3045.4,3043.9,0.08208]
[1641664742652,0.264788,3045.3,3043.8,35.4995]
[1641664742852,0.264788,3045.3,3043.6,0.0821]
[1641664743351,0.264788,3045.3,3044.1,13.76]
[1641664743550,0.264788,3045.3,3043.3,0.98574121]
[1641664743551,1.764788,3045.3,3043.3,0.98574121]
[1641664743753,1.5,3044.9,3042.9,0.08212]
[1641664743952,0.08212,3044.8,3042.8,5.9013]
[1641664744253,2.00479,3045.4,3042.4,13.76]
[1641664744254,0.08212,3045.2,3042.4,13.76]
[1641664744457,2.00479,3044.1,3043.4,2.00479]
[1641664744656,2.00479,3044.1,3043.5,0.264788]
[1641664745255,2.269578,3044.1,3043.5,0.264788]
[1641664745554,1.5,3044.0,3042.8,1.64203343]
[1641664745755,1.64250811,3043.6,3042.4,0.6725]
[1641664745956,0.08214,3044.0,3042.4,1.64223837]
[1641664746154,0.08214,3044.0,3041.1,1.09288158]
[1641664746155,13.84214,3044.0,3041.1,1.09288158]
[1641664746356,1.5,3042.9,3041.1,1.09288158]
[1641664746555,2.00479,3041.6,3041.1,1.09288158]
[1641664746757,0.905575,3041.5,3041.1,1.09288158]
[1641664746955,2.00479,3041.6,3041.1,1.35766958]
[1641664747156,4.0,3041.3,3040.4,2.05959669]
[1641664747359,4.0,3041.3,3039.5,5.414]
[1641664747360,4.0,3040.5,3040.2,4.13058216]
[1641664747656,4.0,3040.5,3040.0,5.0]
[1641664747657,11.49999999,3040.3,3040.0,6.65134354]
[1641664747856,15.49999999,3040.1,3039.7,1.79480869]
[1641664748055,17.14533489,3040.1,3036.7,1.6453349]
[1641664748257,1.5,3039.5,3036.7,0.4999]
[1641664748457,2.00479,3038.0,3037.3,2.00479]
[1641664748658,0.08229,3037.9,3037.0,3.50479]
[1641664748855,0.08229,3037.9,3037.7,7.72290261]
[1641664749056,2.639,3037.9,3037.7,7.72290261]
[1641664749456,2.639,3037.9,3036.7,0.4999]
[1641664749858,2.639,3037.9,3036.7,3.64505354]
[1641664750059,2.639,3037.9,3037.7,1.5]
[1641664750256,4.0,3039.5,3037.8,3.40952755]
[1641664750257,0.08229,3039.4,3037.8,3.40952755]
[1641664750457,0.08229,3039.4,3039.3,2.00479]
[1641664750657,3.13,3040.0,3039.2,0.264788]
[1641664750857,0.7317818,3040.6,3039.4,1.5]
[1641664751060,0.08223,3040.5,3037.8,7.15332195]
[1641664751260,0.04393,3040.5,3037.8,7.15332195]
[1641664751457,4.0,3041.1,3037.8,7.15332195]
[1641664751660,1.64377167,3041.0,3039.3,1.64377167]
[1641664751859,1.5,3041.4,3040.3,1.64325305]
[1641664752058,1.64661095,3039.6,3037.9,34.24692]
[1641664752259,0.08223,3041.6,3037.9,0.08222]
[1641664752459,2.00479,3040.8,3039.9,2.00479]
[1641664753461,0.08222,3042.2,3040.7,1.64256746]
[1641664753661,1.5,3042.3,3040.7,1.64256746]
[1641664753864,1.58219,3043.2,3040.0,13.76]
[1641664754063,1.5,3043.2,3040.8,0.08219]
[1641664754264,1.496,3042.3,3040.0,0.08218]
[1641664754461,2.00479,3040.6,3040.1,19.020389]
[1641664754662,2.645577,3040.6,3040.2,0.264788]
[1641664754862,2.680177,3040.6,3039.4,0.08222]
[1641664755062,2.680177,3040.6,3038.6,0.08222]
[1641664755266,2.680177,3040.6,3038.2,13.84223]
[1641664756063,2.645577,3040.6,3040.1,1.64320985]
[1641664756264,2.00479,3040.6,3040.2,0.264788]
[1641664756464,2.00479,3040.6,3039.7,2.00479]
[1641664756675,1.97219,3040.6,3039.9,8.0]
[1641664756864,1.496,3042.2,3040.6,13.76]
[1641664757065,1.496,3041.8,3039.9,0.08219]
[1641664757266,1.496,3041.8,3040.1,13.76]
[1641664757564,0.08221,3042.7,3040.1,13.76]
[1641664757868,1.496,3041.3,3040.1,13.76]
[1641664758063,30.72750464,3043.1,3040.1,13.76]
[1641664758064,0.08221,3042.5,3040.1,13.76]
[1641664758264,1.496,3041.8,3040.1,13.76]
[1641664758465,13.84219,3043.0,3040.5,1.64300466]
[1641664758466,2.00479,3040.8,3040.5,1.64300466]
[1641664758664,2.00479,3040.8,3040.6,0.264788]
[1641664759066,2.00479,3040.8,3040.7,13.76]
[1641664759265,2.00479,3040.8,3040.7,11.52106403]
[1641664759565,2.466177,3041.1,3040.7,11.52106403]
[1641664759865,1.496,3040.8,3039.8,0.08221]
[1641664760166,1.496,3041.0,3039.5,0.08222]
[1641664760364,1.496,3040.1,3038.4,0.08223]
[1641664760566,2.00479,3039.1,3038.4,2.00479]
[1641664760766,2.00479,3039.4,3038.5,0.264788]
[1641664761065,1.496,3040.8,3038.6,13.84226]
[1641664761265,30.1642,3041.8,3039.3,1.5]
[1641664761464,1.64335297,3041.6,3039.8,1.64335297]
[1641664761867,0.71733887,3042.8,3040.4,1.5]
[1641664762064,0.71733887,3042.8,3040.5,0.08219]
[1641664762266,0.71733887,3042.8,3040.2,1.45426924]
[1641664762467,2.00479,3041.2,3040.4,4.83014907]
[1641664762667,2.00479,3041.2,3040.5,0.346998]
[1641664762865,2.00479,3041.5,3041.1,1.64261873]
[1641664763069,2.00479,3041.5,3041.1,0.264788]
[1641664763872,2.03939,3041.5,3041.1,0.264788]
[1641664764069,1.65349,3041.5,3041.1,0.264788]
[1641664764269,1.61889,3041.5,3041.1,0.264788]
[1641664764468,3.62368,3041.5,3041.1,0.264788]
[1641664765268,0.0346,3041.4,3041.0,0.264788]
[1641664765472,3.62368,3041.5,3040.4,3.33014907]
[1641664765770,3.62368,3041.5,3039.3,1.59101116]
[1641664766370,5.12368,3041.5,3039.3,1.59101116]
[1641664766571,2.00479,3040.0,3039.3,3.59580116]
[1641664766769,2.00479,3040.0,3039.0,2.00479]
[1641664766770,0.0346,3039.9,3039.0,2.00479]
[1641664767470,0.0346,3039.9,3038.6,0.08225]
[1641664767471,1.5,3039.6,3038.6,0.08225]
[1641664767671,1.64455562,3039.3,3038.5,0.08226]
[1641664767870,0.675387,3039.2,3037.9,0.08226]
[1641664768072,1.24019106,3039.3,3037.9,0.08226]
[1641664768280,1.24019106,3039.3,3038.0,1.6443501]
[1641664768571,2.00479,3039.2,3038.4,2.00479]
[1641664768771,2.00479,3039.2,3038.5,0.347048]
[1641664768972,0.0346,3039.1,3038.5,0.347048]
[1641664769173,0.0346,3039.1,3038.5,0.264788]
[1641664769373,2.00479,3039.2,3038.5,0.264788]
[1641664770573,2.00479,3039.2,3038.5,2.269578]
[1641664770775,2.00479,3039.2,3038.7,1.64395542]
[1641664770974,2.00479,3040.0,3038.6,0.264788]
[1641664771781,2.00479,3040.0,3038.6,0.937288]
[1641664771981,1.64452316,3039.4,3038.6,0.264788]
[1641664772181,0.905575,3039.3,3038.6,0.264788]
[1641664772580,1.5,3040.8,3038.6,14.024788]
[1641664772781,1.64421221,3040.0,3038.6,0.264788]
[1641664772982,1.29318614,3039.9,3038.6,0.264788]
[1641664773390,1.29318614,3039.9,3038.6,14.024788]
[1641664773784,1.29318614,3039.9,3038.6,15.66879207]
[1641664774184,1.29318614,3039.9,3038.6,1.90879207]
[1641664774484,13.76,3040.9,3038.6,1.90879207]
[1641664774485,2.00479,3040.0,3039.2,2.00479]
[1641664774685,2.00479,3040.3,3039.7,1.64342859]
[1641664775087,2.00479,3040.3,3039.8,0.230188]
[1641664775288,0.640787,3040.2,3039.8,0.230188]
[1641664775686,1.64319635,3041.9,3040.1,1.64319635]
[1641664775892,1.5,3041.7,3040.2,13.76]
[1641664776088,1.52472058,3041.8,3040.2,13.76]
[1641664776490,1.64319635,3041.9,3040.2,13.76]
[1641664776691,2.00479,3041.2,3040.6,13.76]
[1641664776890,2.00479,3041.2,3040.7,13.43399268]
[1641664777291,2.00479,3041.2,3040.7,1.64290749]
[1641664777492,2.00479,3041.2,3040.8,13.76]
[1641664778495,2.910365,3041.2,3040.6,0.08219]
[1641664778694,2.910365,3041.2,3040.5,2.00479]
[1641664778893,2.00479,3041.2,3040.5,2.00479]
[1641664779494,2.00479,3041.2,3040.6,15.40292638]
[1641664779694,2.00479,3041.2,3040.7,0.08221]
[1641664779896,2.00479,3041.5,3041.2,0.002]
[1641664780394,1.54409307,3042.2,3041.2,0.002]
[1641664780595,2.00479,3042.1,3041.5,13.76]
[1641664781000,2.00479,3042.1,3041.5,8.76]
[1641664781196,21.676,3182.7,3041.5,8.76]
[1641664781496,1.5,3043.9,3041.6,0.08216]
[1641664781696,1.5,3043.9,3041.5,0.08215]
[1641664781896,1.5,3043.9,3041.9,0.98620171]
[1641664782098,1.5,3043.9,3042.0,0.08215]
[1641664782498,0.6725,3043.6,3042.0,0.08215]
[1641664782697,2.00479,3043.7,3043.0,2.00479]
[1641664782898,0.86869902,3044.0,3043.7,0.002]
[1641664783098,1.64178002,3044.3,3043.7,0.002]
[1641664783500,1.6415698,3044.7,3043.7,0.002]
[1641664783698,1.5,3044.6,3043.7,0.002]
[1641664783901,37.06014386,3044.8,3043.7,0.002]
[1641664783902,2.1725,3044.9,3043.7,0.002]
[1641664784097,1.58368753,3044.5,3043.7,0.002]
[1641664784298,1.5,3044.3,3043.7,0.002]
[1641664784599,5.65195053,3043.8,3043.7,0.002]
[1641664784797,5.91673853,3043.8,3043.7,0.002]
[1641664784998,6.55752553,3043.8,3043.7,0.002]
[1641664785198,4.915155,3043.8,3043.7,0.002]
[1641664785399,6.55735022,3043.8,3043.7,0.002]
[1641664785600,4.915155,3043.8,3042.1,2.00479]
[1641664785799,1.5,3042.7,3041.0,34.30005]
[1641664786001,13.84215,3043.7,3041.2,13.76]
[1641664786199,1.5,3043.6,3041.3,0.08217]
[1641664786400,1.5,3043.6,3041.2,0.08217]
[1641664786600,1.5,3043.6,3042.2,2.00479]
[1641664786601,2.00479,3043.0,3042.2,2.00479]
[1641664786802,0.264788,3042.9,3042.2,2.00479]
[1641664787201,2.00479,3043.0,3042.2,2.00479]
[1641664787401,0.264788,3042.9,3042.2,2.00479]
[1641664788002,1.31958093,3042.8,3042.2,2.00479]
[1641664788201,0.264788,3042.7,3042.2,2.00479]
[1641664788803,0.264788,3042.7,3041.5,0.98634641]
[1641664789004,6.90742562,3042.7,3041.5,1.06852641]
[1641664789203,1.64279143,3042.4,3041.5,1.06852641]
[1641664789403,6.64264841,3042.7,3041.5,0.98634641]
[1641664789603,5.0,3042.4,3041.5,0.98634641]
[1641664789803,1.5,3041.8,3041.1,0.08218]
[1641664790006,3.14329896,3041.6,3040.9,15.0]
[1641664790206,1.6434664,3041.2,3040.9,15.0]
[1641664790504,0.264788,3041.1,3040.9,15.0]
[1641664790704,4.00958,3041.0,3040.9,15.0]
[1641664791110,6.84697799,3041.8,3040.9,5.0]
[1641664791304,0.6725,3042.1,3039.8,2.00479]
[1641664791305,5.0,3041.2,3039.8,2.00479]
[1641664791805,9.024788,3040.7,3039.5,2.00479]
[1641664792204,1.64425006,3039.9,3039.5,2.00479]
[1641664792404,9.024788,3039.7,3037.8,0.08223]
[1641664792603,2.00479,3037.9,3037.7,0.98756021]
[1641664792805,1.91028534,3037.8,3036.9,2.00479]
[1641664793008,2.84265468,3037.8,3036.9,2.00479]
[1641664793205,1.19715734,3037.8,3036.9,2.00479]
[1641664793606,1.19715734,3037.8,3036.6,0.6725]
[1641664794005,1.64610408,3036.7,3035.8,4.653022]
[1641664794205,1.64610409,3037.0,3035.8,4.653022]
[1641664794206,0.002,3036.6,3035.8,4.653022]
[1641664794405,0.905575,3036.5,3035.4,0.08233]
[1641664794605,2.55165199,3036.5,3035.9,2.00479]
[1641664794810,1.64626939,3036.1,3035.9,2.00479]
[1641664795004,0.264788,3036.0,3035.0,0.4171539]
[1641664795206,1.64684415,3035.1,3035.0,0.4171539]
[1641664795406,0.264788,3035.3,3035.0,0.4171539]
[1641664795607,1.64659197,3035.5,3035.0,0.4171539]
[1641664795805,5.0,3035.1,3035.0,0.4171539]
[1641664796007,5.9452246,3035.1,3035.0,0.4171539]
[1641664796209,0.9452246,3035.1,3035.0,0.4171539]
[1641664796411,0.9452246,3035.1,3035.0,5.0701759]
[1641664796609,0.002,3036.6,3035.0,10.8445439]
[1641664796807,0.002,3036.6,3036.5,4.653022]
[1641664797008,0.002,3036.6,3036.5,4.91781]
[1641664798106,0.002,3036.6,3036.5,0.264788]
[1641664798306,5.002,3036.6,3036.5,0.264788]
[1641664798606,2.00479,3038.0,3036.5,8.92739]
[1641664798810,2.00479,3038.3,3037.3,4.653022]
[1641664799006,5.0,3038.0,3037.6,4.653022]
[1641664799206,5.0,3038.0,3037.7,0.264788]
[1641664799408,5.0,3038.3,3037.9,1.64424195]
[1641664799610,5.0,3038.3,3038.2,4.653022]
[1641664799808,22.38736317,3039.3,3038.2,4.653022]
[1641664800008,22.38736317,3039.3,3038.0,0.08228]
[1641664800207,0.71733887,3039.8,3038.6,4.653022]
[1641664800406,0.71733887,3039.8,3037.9,1.64424195]
[1641664800407,0.71733887,3039.8,3038.1,1.5]
[1641664800609,0.71733887,3039.8,3039.5,2.00479]
[1641664800810,1.64446367,3039.6,3039.2,2.00479]
[1641664801217,0.264788,3039.5,3037.7,4.653022]
[1641664801418,1.64468004,3039.0,3037.5,1.5]
[1641664801610,0.26709693,3039.8,3037.4,0.08225]
[1641664801811,2.00479,3040.2,3037.0,0.08226]
[1641664802211,5.0,3039.6,3037.5,1.5]
[1641664802412,5.0,3039.6,3037.6,0.08226]
[1641664802614,2.00479,3039.3,3038.6,2.00479]
[1641664802812,0.905575,3039.2,3038.7,0.640787]
[1641664803012,2.00479,3039.3,3038.7,0.905575]
[1641664803212,0.9446923,3039.1,3038.7,0.905575]
[1641664803614,0.9446923,3039.1,3038.6,2.00479]
[1641664803814,5.9446923,3039.1,3038.6,2.00479]
[1641664804018,0.264788,3039.0,3037.2,0.08226]
[1641664804215,0.264788,3039.0,3036.6,0.08228]
[1641664804414,0.264788,3039.0,3037.2,1.5]
[1641664804614,5.0,3039.0,3038.5,2.00479]
[1641664804914,5.0,3039.0,3038.6,0.905575]
[1641664805116,4.7353,3039.0,3038.6,0.905575]
[1641664805316,0.71733887,3040.1,3038.9,1.5]
[1641664805517,0.69076955,3040.6,3040.0,1.64327735]
[1641664805718,0.69076955,3040.6,3040.1,0.264788]
[1641664805917,0.69076955,3040.6,3040.1,1.764788]
[1641664806117,1.43886282,3040.9,3040.5,3.14300196]
[1641664806318,1.43886282,3040.9,3040.8,3.14276175]
[1641664806526,0.81257852,3042.2,3040.8,21.84221]
[1641664806719,0.81257852,3042.2,3042.1,2.00479]
[1641664807017,0.16807852,3042.2,3042.1,2.910365]
[1641664807419,0.16807852,3042.2,3042.1,2.992535]
[1641664807620,0.16807852,3042.2,3042.1,12.63476798]
[1641664807918,1.9148359,3042.5,3042.1,6.13476798]
[1641664808119,0.40003062,3042.9,3042.4,15.14176385]
[1641664808320,0.6725,3044.4,3042.9,8.0]
[1641664808524,5.44311349,3044.5,3043.9,1.5]
[1641664808720,5.44311349,3044.5,3044.4,5.65041985]
[1641664808922,2.98827341,3044.7,3044.4,6.63827718]
[1641664809125,3.66449879,3045.4,3044.6,3.14065679]
[1641664809321,3.50915675,3045.4,3044.7,0.264788]
[1641664809521,4.2917279,3045.8,3045.3,1.5]
[1641664809721,1e-08,3045.8,3045.7,1.5]
[1641664809922,1e-08,3045.8,3045.7,3.40479633]
[1641664810122,4.55376696,3046.3,3045.7,3.40479633]
[1641664810323,3.0456745,3047.0,3045.7,3.40479633]
[1641664810324,0.69918817,3046.8,3046.2,1.5]
[1641664810522,0.69918817,3046.8,3046.3,0.346848]
[1641664810721,0.69918817,3046.8,3046.7,4.00958]
[1641664810924,0.54524192,3046.8,3046.7,2.36677359]
[1641664811122,0.54524192,3046.8,3046.7,0.264788]
[1641664811422,0.28644192,3046.8,3045.5,12.0]
[1641664811628,33.3365,3049.7,3046.7,3.286316]
[1641664811822,47.7133,3050.8,3046.7,3.286316]
[1641664811823,33.90739761,3048.6,3046.7,3.286316]
[1641664812023,33.90739761,3048.6,3046.2,1.205]
[1641664812227,33.90739761,3048.6,3045.6,4.0]
[1641664812228,1.5,3048.1,3047.1,1.63963994]
[1641664812423,1.5,3048.1,3047.1,1.12937486]
[1641664812623,2.00479,3047.5,3046.8,2.00479]
[1641664812824,2.00479,3047.9,3046.8,2.00479]
[1641664813234,1.02228865,3048.5,3046.8,2.00479]
[1641664813432,1.5,3049.0,3046.8,2.00479]
[1641664813632,1.5,3048.8,3048.0,1.63908362]
[1641664813833,1.5,3048.1,3047.6,1.63931739]
[1641664814032,1.5,3047.7,3046.5,2.00479]
[1641664814234,1.5,3048.0,3046.6,0.08202]
[1641664814433,9.414,3050.5,3045.6,0.08204]
[1641664814434,1.5,3046.7,3045.6,0.08204]
[1641664814637,2.00479,3046.8,3046.1,2.00479]
[1641664815034,2.00479,3046.8,3046.2,1.72187815]
[1641664815234,2.00479,3046.8,3046.2,1.63982815]
[1641664815435,1.5,3047.7,3046.2,0.08205]
[1641664815635,1.63887678,3049.7,3047.6,3.13887678]
[1641664815835,0.81962629,3050.0,3048.3,1.5]
[1641664816034,2.12308733,3050.2,3049.7,0.002]
[1641664816234,1.82643944,3050.1,3049.7,0.002]
[1641664816736,1.82643944,3050.1,3050.0,2.00479]
[1641664816936,1.17263944,3050.1,3050.0,2.08675]
[1641664817336,1.17263944,3050.1,3050.0,3.72428224]
[1641664817337,0.51353944,3050.1,3050.0,3.72428224]
[1641664817535,2.67610425,3050.5,3050.0,10.47009724]
[1641664817734,13.69670474,3056.1,3050.0,10.47009724]
[1641664817735,1.82612977,3054.5,3050.4,3.03676539]
[1641664817938,1.82612977,3054.5,3050.6,1.5]
[1641664818138,1.82612977,3054.5,3052.8,1.5]
[1641664818335,0.41312977,3054.5,3052.2,1.5]
[1641664818634,2.00479,3054.4,3053.9,1.63569211]
[1641664818844,0.37022977,3054.5,3053.8,0.08185]
[1641664819035,0.638787,3054.4,3053.5,0.08185]
[1641664819437,1.63649783,3054.1,3053.9,1.12054494]
[1641664819736,1.63669871,3053.7,3052.7,0.08186]
[1641664819937,1.63669871,3053.7,3052.4,0.08187]
[1641664820138,1.5,3053.0,3052.4,0.08187]
[1641664820337,1.63723196,3052.7,3052.1,0.08187]
[1641664820537,1.637173,3052.9,3051.3,0.08189]
[1641664820737,2.00479,3051.9,3051.3,0.08189]
[1641664820938,2.00479,3051.9,3051.2,2.00479]
[1641664820939,0.905575,3051.8,3051.2,2.00479]
[1641664821142,2.00479,3052.2,3051.3,0.083921]
[1641664821337,34.1445,3055.6,3051.3,0.002001]
[1641664821538,5.0,3051.8,3051.4,0.08186]
[1641664821740,3.87945506,3051.8,3051.7,3.3630146]
[1641664821939,3.39685506,3051.8,3051.7,8.8630146]
[1641664822140,37.88888933,3056.3,3051.7,14.1059076]
[1641664822337,37.88888933,3056.3,3053.1,3.3630146]
[1641664822338,29.75190394,3056.3,3053.1,3.3630146]
[1641664822538,1.63606944,3055.2,3053.4,1.63606944]
[1641664822738,2.00479,3054.3,3053.6,2.00479]
[1641664822938,1.63675497,3053.9,3052.9,0.08186]
[1641664823137,8.13698539,3054.1,3052.3,0.08187]
[1641664823337,8.13698539,3054.1,3050.6,0.08187]
[1641664823537,1.63724269,3053.0,3051.2,1.63724269]
[1641664823739,8.13698539,3053.7,3051.3,0.0819]
[1641664823937,8.13698539,3052.8,3050.5,0.08189]
[1641664824141,2.00479,3054.3,3050.1,0.08192]
[1641664824142,5.0,3053.0,3050.1,0.08192]
[1641664824341,5.0,3053.0,3050.4,3.3630146]
[1641664824540,5.0,3053.0,3049.3,0.08192]
[1641664824738,2.00479,3051.3,3050.6,2.00479]
[1641664824937,0.264788,3051.2,3050.7,0.08194]
[1641664825140,2.54377252,3051.2,3049.5,1.63819752]
[1641664825339,0.905575,3051.2,3049.6,0.08194]
[1641664825538,0.905575,3051.2,3049.3,3.4449546]
[1641664825539,0.264788,3051.2,3049.3,3.4449546]
[1641664825739,0.264788,3051.2,3049.3,0.08194]
[1641664825939,0.264788,3051.2,3050.2,3.3630146]
[1641664826140,5.0,3051.2,3049.7,0.9836752]
[1641664826341,8.13698539,3050.8,3049.7,0.9836752]
[1641664826541,5.0,3051.2,3048.3,3.3630146]
[1641664826542,8.13698539,3051.1,3048.3,3.3630146]
[1641664826746,2.00479,3049.7,3049.0,2.00479]
[1641664826944,2.00479,3049.7,3049.1,0.002001]
[1641664827141,5.0,3050.8,3049.1,0.002001]
[1641664827341,5.0,3050.8,3049.7,3.3630146]
[1641664827542,5.0,3050.8,3049.8,0.08196]
[1641664827743,5.0,3051.1,3049.8,0.08196]
[1641664827941,5.0,3050.8,3049.4,0.08194]
[1641664828143,5.0,3050.8,3050.0,1.63793188]
[1641664828343,5.0,3051.1,3050.1,0.08194]
[1641664828543,5.0,3051.1,3051.0,3.3630146]
[1641664828943,5.0,3051.1,3051.0,3.4469456]
[1641664829142,2.911279,3050.8,3050.5,2.00479]
[1641664829343,2.911279,3050.8,3050.7,3.3630146]
[1641664829344,0.67927357,3050.8,3050.7,3.3630146]
[1641664829547,34.89801379,3052.6,3050.7,3.3630146]
[1641664829845,34.89801379,3052.6,3050.5,3.00821549]
[1641664829846,34.89801379,3052.6,3051.2,1.0031977]
[1641664830044,34.89801379,3052.6,3050.5,2.00479]
[1641664830243,34.89801379,3052.6,3051.4,3.3630146]
[1641664830644,2.00479,3052.3,3051.6,2.00479]
[1641664831046,2.00479,3052.3,3051.7,3.3630146]
[1641664831247,2.00479,3052.6,3051.7,3.3630146]
[1641664831646,34.77464939,3054.1,3052.5,3.3630146]
[1641664831847,34.77464939,3054.1,3052.9,3.3630146]
[1641664832052,0.08186,3055.6,3052.3,0.08187]
[1641664832248,8.13698539,3055.3,3052.3,0.08187]
[1641664832450,0.08186,3055.2,3052.8,3.3630146]
[1641664832650,8.13698539,3054.9,3052.9,0.08185]
[1641664832850,2.00479,3053.1,3052.3,0.08186]
[1641664833051,0.905575,3053.0,3051.6,2.00479]
[1641664833250,2.47403276,3053.0,3051.6,2.00479]
[1641664833450,2.47403276,3053.0,3051.7,1.63697735]
[1641664833651,2.47403276,3053.0,3051.8,0.08189]
[1641664834051,2.47403276,3053.0,3051.6,2.00479]
[1641664834252,2.47403276,3053.0,3051.7,0.08189]
[1641664834758,2.00479,3052.6,3052.3,3.3630146]
[1641664834951,2.00479,3052.6,3051.9,1.18576719]
[1641664834952,2.00479,3052.6,3052.0,3.4449046]
[1641664835453,2.00479,3052.6,3051.9,1.18576719]
[1641664835853,2.269578,3052.6,3051.9,1.18576719]
[1641664836151,0.640787,3052.5,3051.2,0.08189]
[1641664836355,1.63767974,3052.2,3050.9,0.0819]
[1641664836553,1.94608318,3052.5,3050.3,0.08192]
[1641664836752,2.00479,3050.9,3050.2,1.63781653]
[1641664837051,2.00479,3050.9,3049.6,2.08672]
[1641664837052,2.269578,3050.9,3049.6,2.08672]
[1641664837255,2.269578,3050.9,3049.6,2.00479]
[1641664837853,2.269578,3050.9,3049.6,2.67729]
[1641664838053,2.00479,3050.9,3049.6,2.00479]
[1641664838654,1.63854916,3050.5,3048.8,1.63854916]
[1641664838853,4.00958,3049.7,3048.4,0.08196]
[1641664839055,4.00958,3049.7,3048.2,0.08198]
[1641664839254,1.06555241,3049.6,3048.1,2.00479]
[1641664839454,1.63901646,3049.7,3048.1,2.00479]
[1641664839652,12.07811241,3050.3,3048.1,2.00479]
[1641664839855,0.08197,3050.2,3048.1,2.00479]
[1641664840054,1.63892513,3049.8,3048.1,3.64371513]
[1641664840253,8.13698539,3050.0,3048.1,2.00479]
[1641664840455,1.63922334,3049.3,3048.1,2.00479]
[1641664840655,1.63903526,3049.6,3048.1,2.00479]
[1641664840855,2.00479,3048.9,3048.1,2.00479]
[1641664841455,5.0,3048.9,3048.8,3.3630146]
[1641664841855,1.63833709,3050.9,3048.8,5.08333169]
[1641664842056,0.08197,3051.5,3049.1,3.3630146]
[1641664842256,13.84194,3051.9,3049.2,0.08194]
[1641664842458,21.97892539,3051.9,3048.8,3.3630146]
[1641664842659,8.21892539,3051.9,3048.9,0.08194]
[1641664842862,2.00479,3050.3,3049.7,3.3630146]
[1641664843061,2.00479,3050.3,3050.0,3.3630146]
[1641664843262,13.84196,3052.6,3049.7,1.06566262]
[1641664843561,5.0,3050.3,3050.0,3.3630146]
[1641664843762,5.0,3050.3,3050.1,0.08196]
[1641664843963,13.84196,3052.6,3050.0,3.3630146]
[1641664844160,13.84196,3052.6,3050.5,3.3630146]
[1641664844361,1.3135881,3052.5,3051.6,3.3630146]
[1641664844564,1.3135881,3052.5,3051.8,3.3630146]
[1641664844761,1.3135881,3052.5,3052.4,2.00479]
[1641664844964,0.905575,3052.7,3052.4,2.00479]
[1641664845163,2.00479,3053.3,3051.4,0.08189]
[1641664845164,1.63733383,3052.8,3051.5,1.63708455]
[1641664845363,1.40740741,3052.5,3050.8,3.4449046]
[1641664845563,1.40740741,3052.5,3050.8,3.3630146]
[1641664845765,1.40740741,3052.5,3051.1,1.63733383]
[1641664846163,1.40740741,3052.5,3050.9,0.0819]
[1641664846164,1.63754028,3052.4,3050.9,0.0819]
[1641664846363,1.40740741,3052.5,3050.5,4.54311219]
[1641664846562,1.40740741,3052.5,3050.1,0.6725]
[1641664846563,0.08192,3052.4,3050.6,3.3630146]
[1641664846765,2.00479,3051.6,3050.9,2.00479]
[1641664846965,0.264788,3051.5,3050.9,2.00479]
[1641664847364,1.00338675,3051.4,3050.0,0.08193]
[1641664847567,1.00338675,3051.4,3050.1,3.3630146]
[1641664847765,1.00338675,3051.4,3049.9,1.63796944]
[1641664847966,1.08532675,3051.4,3049.3,0.08194]
[1641664848367,1.63833172,3051.2,3049.6,0.6725]
[1641664848568,0.08194,3051.1,3049.6,0.6725]
[1641664848767,2.00479,3050.2,3049.5,2.00479]
[1641664849166,2.00479,3050.5,3049.5,2.00479]
[1641664849366,1.63822168,3051.2,3049.5,5.3678046]
[1641664849565,1.63822168,3051.2,3049.7,0.6725]
[1641664849967,1.63794261,3051.7,3050.0,1.63793188]
[1641664850172,1.63765292,3052.2,3050.5,1.63765292]
[1641664850769,2.00479,3051.5,3050.8,2.00479]
[1641664850969,0.905575,3051.4,3050.8,2.00479]
[1641664851168,1.63831293,3051.0,3049.4,1.63806066]
[1641664851369,0.08193,3051.3,3048.9,0.98393477]
[1641664851570,0.722747,3051.4,3049.0,3.4449746]
[1641664851867,1.60915823,3051.3,3049.5,0.98375362]
[1641664852067,1.60915823,3051.3,3049.6,0.08194]
[1641664852267,1.6386324,3050.4,3049.1,0.08196]
[1641664852467,1.6386324,3050.4,3049.0,1.63845788]
[1641664852669,1.6386324,3050.4,3049.3,3.3630146]
[1641664852869,2.00479,3049.7,3049.3,3.3630146]
[1641664853070,2.00479,3049.7,3049.3,5.00128459]
[1641664853272,2.00479,3049.7,3049.4,0.08197]
[1641664853471,2.00479,3049.7,3049.6,3.3630146]
[1641664853671,1.63807676,3051.7,3049.6,3.4449846]
[1641664853871,0.08194,3052.1,3050.2,3.3630146]
[1641664854071,0.08193,3053.2,3050.2,3.3630146]
[1641664854574,0.08193,3053.2,3050.7,3.3630146]
[1641664854875,2.00479,3050.8,3050.7,3.3630146]
[1641664855073,2.00479,3051.1,3050.7,3.3630146]
[1641664855873,0.83907185,3051.0,3050.7,3.3630146]
[1641664856475,0.08194,3053.0,3051.1,0.98324069]
[1641664856776,2.00479,3052.3,3051.6,5.3678046]
[1641664856976,2.00479,3052.3,3051.6,2.00479]
[1641664857173,2.269578,3052.3,3051.6,2.00479]
[1641664857374,0.640787,3052.2,3051.6,2.00479]
[1641664857776,0.87815394,3052.1,3051.8,3.3630146]
[1641664857978,0.87815394,3052.1,3051.6,2.00479]
[1641664858375,0.87815394,3052.1,3051.2,0.0819]
[1641664858576,0.264788,3052.0,3049.9,0.08192]
[1641664858875,2.00479,3050.8,3049.9,0.08192]
[1641664859081,2.00479,3050.8,3049.2,0.98383265]
[1641664859376,2.00479,3050.8,3049.2,0.6725]